[Event "VIII Iberoamericano Mexico 2022"]
[Site "Mexico City"]
[Date "2022.02.17"]
[Round "6.48"]
[White "Garcia de Dios, Jose Antonio"]
[Black "Salazar Moreno, Rafael"]
[Result "1/2-1/2"]
[ECO "D36"]
[WhiteElo "2145"]
[BlackElo "1778"]
[Annotator "NA"]
[PlyCount "79"]
[EventDate "2022.02.12"]
[EventType "swiss"]
[EventCountry "MEX"]
[SourceTitle "playchess.com"]
[Source "ChessBase"]
[SourceQuality "1"]
[TimeControl "5400+30"]

1. d4 {[%emt 0:03:33]} d5 {[%emt 0:01:03]} 2. c4 {[%emt 0:00:19]} e6 {[%emt 0:01:23]} 3. Nc3 {[%emt 0:00:39]} Nf6 {[%emt 0:00:39]} 4. cxd5 {[%emt 0:00:31]} exd5 {[%emt 0:00:14]} 5. Bg5 {[%emt 0:00:32]} c6 {[%emt 0:01:59]} 6. e3 {[%emt 0:01:25]} Be7 {[%emt 0:03:06]} 7. Bd3 {[%emt 0:01:02]} Be6 {[%emt 0:04:54]} 8. Nge2 {[%emt 0:07:47]} Nbd7 {[%emt 0:05:57]} 9. O-O {[%emt 0:05:34]} O-O {[%emt 0:03:42]} 10. Qc2 {[%emt 0:02:17]} Re8 {[%emt 0:05:16]} 11. Nf4 {[%emt 0:02:25]} Nf8 {[%emt 0:06:32]} 12. Nxe6 {[%emt 0:04:16]} fxe6 {[%emt 0:01:06]} 13. f3 {[%emt 0:13:28]} N6d7 {[%emt 0:02:57]} 14. Bxe7 {[%emt 0:12:43]} Qxe7 {[%emt 0:00:52]} 15. e4 {[%emt 0:00:25]} Nf6 {[%emt 0:08:03]} 16. e5 {[%emt 0:02:50]} Nh5 {[%emt 0:00:48]} 17. f4 {[%emt 0:00:36]} g6 {[%emt 0:00:39]} 18. g4 {[%emt 0:05:15]} Ng7 {[%emt 0:01:03]} 19. f5 {[%emt 0:00:16]} exf5 {[%emt 0:02:20]} 20. gxf5 {[%emt 0:00:07]} gxf5 {[%emt 0:02:06]} 21. Bxf5 {[%emt 0:05:05]} Nxf5 {[%emt 0:02:14]} 22. Qxf5 {[%emt 0:03:06]} Ne6 {[%emt 0:00:53]} 23. Kh1 {[%emt 0:03:26]} Kh8 {[%emt 0:00:13]} 24. Ne2 {[%emt 0:02:13]} Rf8 {[%emt 0:01:07]} 25. Qh3 {[%emt 0:04:16]} Rae8 {[%emt 0:09:22]} 26. Qh6 {[%emt 0:04:41]} Qg7 {[%emt 0:02:41]} 27. Rxf8+ {[%emt 0:00:23]} Qxf8 {[%emt 0:00:30]} 28. Qh5 {[%emt 0:04:12]} Re7 {[%emt 0:01:39]} 29. Rg1 {[%emt 0:00:58]} Rg7 {[%emt 0:03:35]} 30. Rxg7 {[%emt 0:10:20]} Nxg7 {[%emt 0:00:19]} 31. Qh3 {[%emt 0:00:11]} Qf5 {[%emt 0:01:20]} 32. Qe3 {[%emt 0:01:07]} Ne6 {[%emt 0:01:04]} 33. Kg2 {[%emt 0:00:12]} Qg4+ {[%emt 0:00:39]} 34. Kf2 {[%emt 0:00:23]} Qh4+ {[%emt 0:01:35]} 35. Qg3 {[%emt 0:00:30]} Qe4 {[%emt 0:01:08]} 36. Qf3 {[%emt 0:00:27]} Qh4+ {[%emt 0:00:19]} 37. Kg2 {[%emt 0:00:42]} Qg5+ {[%emt 0:01:24]} 38. Kf2 {[%emt 0:00:37]} Qe7 {[%emt 0:24:49]} 39. Ng1 {[%emt 0:01:11]} c5 40. Ne2 {[%emt 0:00:30]} 1/2-1/2

[Event "VIII Iberoamericano Mexico 2022"]
[Site "Mexico City"]
[Date "2022.02.17"]
[Round "6.49"]
[White "Ocampo, Cristina"]
[Black "Santiago Gonzalez, Frida"]
[Result "1-0"]
[ECO "B09"]
[WhiteElo "2024"]
[BlackElo "1758"]
[Annotator "NA"]
[PlyCount "73"]
[EventDate "2022.02.12"]
[EventType "swiss"]
[EventCountry "MEX"]
[SourceTitle "playchess.com"]
[Source "ChessBase"]
[SourceQuality "1"]
[TimeControl "5400+30"]

1. e4 {[%emt 0:00:03]} g6 {[%emt 0:02:49]} 2. d4 {[%emt 0:01:31]} Bg7 {[%emt 0:00:15]} 3. Nc3 {[%emt 0:01:48]} d6 {[%emt 0:00:24]} 4. f4 {[%emt 0:00:38]} Nf6 {[%emt 0:00:35]} 5. Bd3 {[%emt 0:00:23]} O-O {[%emt 0:00:25]} 6. Nf3 {[%emt 0:00:09]} c5 {[%emt 1:29:02]} 7. dxc5 {[%emt 0:02:58]} dxc5 {[%emt 0:00:00]} 8. e5 {[%emt 0:00:06]} Nd5 {[%emt 0:00:00]} 9. Nxd5 {[%emt 0:00:18]} Qxd5 {[%emt 0:00:00]} 10. Qe2 {[%emt 0:00:06]} Bg4 {[%emt 0:00:00]} 11. Be4 {[%emt 0:01:00]} Qd7 {[%emt 0:00:00]} 12. Be3 {[%emt 0:01:11]} Na6 {[%emt 0:00:00]} 13. O-O {[%emt 0:03:00]} Rad8 {[%emt 0:00:00]} 14. c3 {[%emt 0:13:56]} Qc8 {[%emt 0:00:00]} 15. Rad1 {[%emt 0:12:45]} b6 {[%emt 0:00:00]} 16. Qf2 {[%emt 0:03:23]} Nc7 {[%emt 0:00:00]} 17. Qh4 {[%emt 0:03:20]} Bxf3 {[%emt 0:00:00]} 18. Bxf3 {[%emt 0:00:17]} e6 {[%emt 0:00:00]} 19. c4 {[%emt 0:01:44]} f6 {[%emt 0:00:00]} 20. Rxd8 {[%emt 0:05:47]} Qxd8 {[%emt 0:00:00]} 21. Rd1 {[%emt 0:00:11]} Qe8 {[%emt 0:00:00]} 22. Rd6 {[%emt 0:12:04]} Qa4 {[%emt 0:00:00]} 23. f5 {[%emt 0:00:59]} Qxa2 {[%emt 0:00:00]} 24. Bh6 {[%emt 0:09:02]} g5 {[%emt 0:00:00]} 25. Qh5 {[%emt 0:01:17]} Bxh6 {[%emt 0:00:00]} 26. Qxh6 {[%emt 0:00:21]} Qb1+ {[%emt 0:00:00]} 27. Rd1 {[%emt 0:01:27]} Qxf5 {[%emt 0:00:00]} 28. Rd7 {[%emt 0:00:32]} Qb1+ {[%emt 0:00:00]} 29. Kf2 {[%emt 0:01:28]} Ne8 {[%emt 0:00:00]} 30. exf6 {[%emt 0:17:12]} Qxb2+ {[%emt 0:00:00]} 31. Kg3 {[%emt 0:01:29]} Qe5+ {[%emt 0:00:00]} 32. Kh3 {[%emt 0:00:52]} g4+ {[%emt 0:00:00]} 33. Bxg4 {[%emt 0:00:22]} Qe4 {[%emt 0:00:00]} 34. f7+ {[%emt 0:02:07]} Rxf7 {[%emt 0:02:19]} 35. Bxe6 {[%emt 0:00:06]} Kh8 {[%emt 0:00:24]} 36. Rxf7 {[%emt 0:00:26]} Kg8 {[%emt 0:12:17]} 37. Rf3+ 1-0

[Event "VIII Iberoamericano Mexico 2022"]
[Site "Mexico City"]
[Date "2022.02.17"]
[Round "6.50"]
[White "Carreras Mendiolea, Paulina Adri"]
[Black "Lopez De Nava Hernandez, Carlos"]
[Result "1/2-1/2"]
[ECO "B33"]
[WhiteElo "1745"]
[BlackElo "2023"]
[Annotator "NA"]
[PlyCount "232"]
[EventDate "2022.02.12"]
[EventType "swiss"]
[EventCountry "MEX"]
[SourceTitle "playchess.com"]
[Source "ChessBase"]
[SourceQuality "1"]
[TimeControl "5400+30"]

1. e4 {[%emt 0:00:03]} c5 {[%emt 0:08:42]} 2. Nf3 {[%emt 0:00:18]} Nc6 {[%emt 0:00:03]} 3. d4 {[%emt 0:00:07]} cxd4 {[%emt 0:00:03]} 4. Nxd4 {[%emt 0:00:10]} Nf6 {[%emt 0:00:10]} 5. Nc3 {[%emt 0:00:22]} e5 {[%emt 0:00:06]} 6. Ndb5 {[%emt 0:02:18]} d6 {[%emt 0:00:13]} 7. Bg5 {[%emt 0:01:55]} a6 {[%emt 0:00:12]} 8. Na3 {[%emt 0:00:08]} b5 {[%emt 0:00:01]} 9. Nd5 {[%emt 0:00:17]} Be7 {[%emt 0:00:03]} 10. Bxf6 {[%emt 0:17:49]} Bxf6 {[%emt 0:00:03]} 11. c3 {[%emt 0:00:05]} Bg5 {[%emt 0:00:10]} 12. Nc2 {[%emt 0:00:32]} O-O {[%emt 0:00:12]} 13. Be2 {[%emt 0:00:57]} g6 {[%emt 0:02:15]} 14. O-O {[%emt 0:14:48]} Ne7 {[%emt 0:04:02]} 15. a4 {[%emt 0:11:09]} Nxd5 {[%emt 0:05:41]} 16. Qxd5 {[%emt 0:00:14]} Be6 {[%emt 0:00:08]} 17. Qd1 {[%emt 0:00:24]} bxa4 {[%emt 1:16:56]} 18. Rxa4 {[%emt 0:01:12]} a5 {[%emt 0:00:00]} 19. Bc4 {[%emt 0:12:02]} Bxc4 {[%emt 0:00:00]} 20. Rxc4 {[%emt 0:00:15]} Qb6 {[%emt 0:00:00]} 21. b4 {[%emt 0:04:58]} Rac8 {[%emt 0:00:00]} 22. Qd5 {[%emt 0:02:48]} axb4 {[%emt 0:00:00]} 23. Nxb4 {[%emt 0:00:22]} Rc5 {[%emt 0:00:00]} 24. Qd3 {[%emt 0:13:51]} Rfc8 {[%emt 0:00:00]} 25. Rxc5 {[%emt 0:00:49]} dxc5 {[%emt 0:00:00]} 26. Nd5 {[%emt 0:00:30]} Qa5 {[%emt 0:00:00]} 27. h4 {[%emt 0:02:06]} Bxh4 {[%emt 0:00:00]} 28. Qh3 {[%emt 0:00:11]} Qd8 {[%emt 0:00:00]} 29. Rd1 {[%emt 0:00:55]} c4 {[%emt 0:00:00]} 30. g3 {[%emt 0:01:48]} Bg5 {[%emt 0:00:00]} 31. Nf6+ {[%emt 0:00:14]} Bxf6 {[%emt 0:00:00]} 32. Rxd8+ {[%emt 0:00:19]} Rxd8 {[%emt 0:00:00]} 33. Qf1 {[%emt 0:00:17]} Rd3 {[%emt 0:00:03]} 34. Qa1 {[%emt 0:00:11]} Bg5 {[%emt 0:01:35]} 35. Qa5 {[%emt 0:01:42]} f6 {[%emt 0:00:22]} 36. Qa8+ {[%emt 0:01:21]} Kg7 {[%emt 0:00:11]} 37. Qa5 {[%emt 0:05:15]} Kh6 {[%emt 0:01:41]} 38. Qb4 {[%emt 0:00:45]} Bd2 {[%emt 0:01:23]} 39. Qxc4 {[%emt 0:01:50]} Rxc3 {[%emt 0:00:08]} 40. Qe6 {[%emt 0:00:35]} Bg5 {[%emt 0:04:37]} 41. Kg2 {[%emt 0:00:45]} Rd3 {[%emt 0:00:36]} 42. Qf7 {[%emt 0:01:34]} Rd2 {[%emt 0:01:18]} 43. Qf8+ {[%emt 0:02:29]} Kh5 {[%emt 0:00:04]} 44. Kh3 {[%emt 0:00:07]} Rd3 {[%emt 0:00:33]} 45. Qc8 {[%emt 0:01:14]} Kh6 {[%emt 0:00:48]} 46. Qf8+ {[%emt 0:00:13]} Kh5 {[%emt 0:00:03]} 47. Qg7 {[%emt 0:00:21]} Rf3 {[%emt 0:01:03]} 48. Qxh7+ {[%emt 0:00:18]} Bh6 {[%emt 0:00:06]} 49. Qd7 {[%emt 0:00:09]} f5 {[%emt 0:00:36]} 50. exf5 {[%emt 0:01:38]} gxf5 {[%emt 0:00:01]} 51. Qe7 {[%emt 0:00:39]} Rxf2 {[%emt 0:00:47]} 52. Qxe5 {[%emt 0:00:32]} Kg6 {[%emt 0:00:26]} 53. Qd6+ {[%emt 0:00:22]} Kh5 {[%emt 0:00:26]} 54. Qd4 {[%emt 0:00:37]} Rd2 {[%emt 0:00:21]} 55. g4+ {[%emt 0:00:28]} Kg6 {[%emt 0:00:26]} 56. Qb6+ {[%emt 0:00:18]} Kg7 {[%emt 0:01:11]} 57. gxf5 {[%emt 0:00:33]} Rd3+ {[%emt 0:00:39]} 58. Kg4 {[%emt 0:00:06]} Bd2 {[%emt 0:00:28]} 59. Qg6+ {[%emt 0:00:20]} Kf8 {[%emt 0:00:18]} 60. f6 {[%emt 0:00:22]} Rd7 {[%emt 0:00:41]} 61. Kf5 {[%emt 0:00:24]} Bb4 {[%emt 0:00:23]} 62. Ke6 {[%emt 0:01:22]} Rd6+ {[%emt 0:00:02]} 63. Ke5 {[%emt 0:00:08]} Rd7 {[%emt 0:00:10]} 64. Qh6+ {[%emt 0:00:22]} Kg8 {[%emt 0:00:35]} 65. Qg6+ {[%emt 0:00:50]} Kf8 {[%emt 0:00:02]} 66. Qg4 {[%emt 0:00:41]} Bc3+ {[%emt 0:01:34]} 67. Ke6 {[%emt 0:00:16]} Rc7 {[%emt 0:00:22]} 68. Qe4 {[%emt 0:00:55]} Bxf6 {[%emt 0:00:53]} 69. Kxf6 {[%emt 0:00:25]} Rf7+ {[%emt 0:00:09]} 70. Kg6 {[%emt 0:00:09]} Rg7+ {[%emt 0:00:06]} 71. Kh6 {[%emt 0:00:07]} Re7 {[%emt 0:00:17]} 72. Qd5 {[%emt 0:01:14]} Re8 {[%emt 0:01:35]} 73. Qd6+ {[%emt 0:00:35]} Kf7 {[%emt 0:00:20]} 74. Qd7+ {[%emt 0:00:26]} Re7 {[%emt 0:00:03]} 75. Qf5+ {[%emt 0:00:06]} Ke8 {[%emt 0:00:33]} 76. Qd5 {[%emt 0:00:45]} Rd7 {[%emt 0:00:17]} 77. Qc6 {[%emt 0:00:34]} Ke7 {[%emt 0:00:16]} 78. Kg5 {[%emt 0:00:35]} Rd6 {[%emt 0:00:13]} 79. Qc5 {[%emt 0:00:05]} Ke6 {[%emt 0:00:20]} 80. Kf4 {[%emt 0:00:26]} Rd5 {[%emt 0:00:42]} 81. Qc4 {[%emt 0:00:15]} Kd6 {[%emt 0:00:20]} 82. Ke4 {[%emt 0:00:17]} Re5+ {[%emt 0:00:45]} 83. Kd4 {[%emt 0:00:57]} Rf5 {[%emt 0:00:26]} 84. Qa6+ {[%emt 0:00:48]} Ke7 {[%emt 0:00:16]} 85. Qg6 {[%emt 0:00:38]} Rf6 {[%emt 0:00:12]} 86. Qg7+ {[%emt 0:00:24]} Ke6 {[%emt 0:00:15]} 87. Ke4 {[%emt 0:00:11]} Rf7 {[%emt 0:02:13]} 88. Qg4+ {[%emt 0:00:57]} Kf6 {[%emt 0:00:41]} 89. Qf5+ {[%emt 0:00:14]} Kg7 {[%emt 0:00:28]} 90. Qg5+ {[%emt 0:00:23]} Kf8 {[%emt 0:00:06]} 91. Ke5 {[%emt 0:00:11]} Re7+ {[%emt 0:00:38]} 92. Kf6 {[%emt 0:00:13]} Rf7+ {[%emt 0:00:48]} 93. Ke6 {[%emt 0:00:10]} Rf1 {[%emt 0:00:30]} 94. Qg6 {[%emt 0:01:46]} Re1+ {[%emt 0:00:18]} 95. Kf6 {[%emt 0:00:38]} Rf1+ {[%emt 0:00:12]} 96. Ke5 {[%emt 0:00:30]} Re1+ {[%emt 0:00:11]} 97. Kf4 {[%emt 0:00:16]} Rf1+ {[%emt 0:00:11]} 98. Ke3 {[%emt 0:00:13]} Rf7 {[%emt 0:00:28]} 99. Ke4 {[%emt 0:00:08]} Rg7 {[%emt 0:00:27]} 100. Qf6+ {[%emt 0:00:09]} Rf7 {[%emt 0:00:14]} 101. Qh6+ {[%emt 0:00:14]} Ke8 {[%emt 0:01:15]} 102. Qg6 {[%emt 0:01:12]} Kf8 {[%emt 0:00:35]} 103. Ke5 {[%emt 0:00:13]} Rf1 {[%emt 0:00:27]} 104. Qg2 {[%emt 0:01:06]} Rf7 {[%emt 0:00:29]} 105. Qg6 {[%emt 0:00:57]} Rf1 {[%emt 0:00:11]} 106. Qh6+ {[%emt 0:00:35]} Kg8 {[%emt 0:00:50]} 107. Qa6 {[%emt 0:00:31]} Rf7 {[%emt 0:00:26]} 108. Qg6+ {[%emt 0:00:25]} Kf8 {[%emt 0:00:14]} 109. Ke6 {[%emt 0:00:32]} Rf1 {[%emt 0:00:41]} 110. Qh6+ {[%emt 0:00:33]} Kg8 {[%emt 0:00:34]} 111. Qg6+ {[%emt 0:00:24]} Kf8 {[%emt 0:00:06]} 112. Qh6+ {[%emt 0:00:35]} Kg8 {[%emt 0:00:06]} 113. Qg6+ {[%emt 0:00:28]} Kf8 {[%emt 0:02:44]} 114. Qh6+ {[%emt 0:01:05]} Kg8 {[%emt 0:00:30]} 115. Qg5+ {[%emt 0:00:30]} Kf8 {[%emt 0:00:30]} 116. Qg6 {[%emt 0:00:30]} Re1+ {[%emt 0:00:30]} 1/2-1/2

[Event "VIII Iberoamericano Mexico 2022"]
[Site "Mexico City"]
[Date "2022.02.17"]
[Round "6.51"]
[White "Huguet, Sergio"]
[Black "Munoz Ricardo, Wasdin Antonio"]
[Result "1-0"]
[ECO "D00"]
[WhiteElo "1977"]
[BlackElo "1745"]
[Annotator "NA"]
[PlyCount "61"]
[EventDate "2022.02.12"]
[EventType "swiss"]
[EventCountry "MEX"]
[SourceTitle "playchess.com"]
[Source "ChessBase"]
[SourceQuality "1"]
[TimeControl "5400+30"]

1. d4 {[%emt 1:31:00]} d5 {[%emt 1:31:00]} 2. Bf4 {[%emt 0:00:30]} c6 {[%emt 0:00:30]} 3. e3 {[%emt 0:00:30]} Bf5 {[%emt 0:00:30]} 4. c4 {[%emt 0:00:30]} Bxb1 {[%emt 0:00:30]} 5. Qxb1 {[%emt 0:00:30]} e6 {[%emt 0:00:30]} 6. a3 {[%emt 0:00:30]} a5 {[%emt 0:00:30]} 7. Nf3 {[%emt 0:00:30]} Nf6 {[%emt 0:00:30]} 8. Bd3 {[%emt 0:00:30]} Nbd7 {[%emt 0:00:30]} 9. O-O {[%emt 0:00:30]} dxc4 {[%emt 0:00:30]} 10. Bxc4 {[%emt 0:00:30]} Nb6 {[%emt 0:00:30]} 11. Bd3 {[%emt 0:00:30]} Nbd5 {[%emt 0:00:30]} 12. Bg3 {[%emt 0:00:30]} Be7 {[%emt 0:00:30]} 13. e4 {[%emt 0:00:30]} Nb6 {[%emt 0:00:30]} 14. h3 {[%emt 0:00:30]} g6 {[%emt 0:00:30]} 15. Qc1 {[%emt 0:00:30]} Nh5 {[%emt 0:00:30]} 16. Be5 {[%emt 0:00:30]} f6 {[%emt 0:00:30]} 17. Bh2 {[%emt 0:00:30]} e5 {[%emt 0:00:30]} 18. g4 {[%emt 0:00:30]} Ng7 {[%emt 0:00:30]} 19. Qe3 {[%emt 0:00:30]} exd4 {[%emt 0:00:30]} 20. Nxd4 {[%emt 0:00:30]} Bc5 {[%emt 0:00:30]} 21. Nxc6 {[%emt 0:00:30]} Bxe3 {[%emt 0:00:30]} 22. Nxd8 {[%emt 0:00:30]} Rxd8 {[%emt 0:00:30]} 23. Bb5+ {[%emt 0:00:30]} Ke7 {[%emt 0:00:30]} 24. fxe3 {[%emt 0:00:30]} h5 {[%emt 0:00:30]} 25. Bc7 {[%emt 0:00:30]} Nd7 {[%emt 0:00:30]} 26. Bxd8+ {[%emt 0:00:30]} Rxd8 {[%emt 0:00:30]} 27. Rad1 {[%emt 0:00:30]} hxg4 {[%emt 0:00:30]} 28. Bxd7 {[%emt 0:00:30]} Rxd7 {[%emt 0:00:30]} 29. Rxd7+ {[%emt 0:00:30]} Kxd7 {[%emt 0:00:30]} 30. Rxf6 {[%emt 0:00:30]} gxh3 {[%emt 0:00:30]} 31. Rf7+ {[%emt 0:00:30]} 1-0

[Event "VIII Iberoamericano Mexico 2022"]
[Site "Mexico City"]
[Date "2022.02.18"]
[Round "7.10"]
[White "Henderson de La Fuente, Lance"]
[Black "Perez Garcia, Rodney Oscar"]
[Result "1-0"]
[ECO "B70"]
[WhiteElo "2494"]
[BlackElo "2331"]
[Annotator "ChessBase"]
[PlyCount "73"]
[EventDate "2022.02.12"]
[EventType "swiss"]
[EventCountry "MEX"]
[SourceTitle "playchess.com"]
[Source "ChessBase"]
[SourceQuality "1"]
[TimeControl "5400+30"]

1. e4 {[%emt 0:00:09]} c5 {[%emt 0:05:17]} 2. Nf3 {[%emt 0:00:34]} Nc6 {[%emt 0:02:12]} 3. d4 {[%emt 0:00:44]} cxd4 {[%emt 0:00:13]} 4. Nxd4 {[%emt 0:00:07]} Nf6 {[%emt 0:00:31]} 5. Nc3 {[%emt 0:00:19]} d6 {[%emt 0:00:18]} 6. g3 {[%emt 0:07:25]} g6 {[%emt 0:01:48]} 7. Nde2 {[%emt 0:01:00]} Bg7 {[%emt 0:02:45]} 8. Bg2 {[%emt 0:00:07]} Rb8 {[%emt 0:02:58]} 9. a4 {[%emt 0:00:24]} O-O {[%emt 0:09:26]} 10. O-O {[%emt 0:00:37]} a6 {[%emt 0:00:04]} 11. h3 {[%emt 0:00:22]} b5 {[%emt 0:02:10]} 12. axb5 {[%emt 0:00:08]} axb5 {[%emt 0:00:08]} 13. Be3 {[%emt 0:00:37]} b4 {[%emt 0:01:33]} 14. Nd5 {[%emt 0:00:28]} Nd7 {[%emt 0:01:31]} 15. Nd4 {[%emt 0:02:42]} Bb7 {[%emt 0:07:33]} 16. Nxc6 {[%emt 0:00:58]} Bxc6 {[%emt 0:00:13]} 17. Bd4 {[%emt 0:00:36]} e6 {[%emt 0:17:17]} 18. Bxg7 {[%emt 0:00:39]} Kxg7 {[%emt 0:01:51]} 19. Qd4+ {[%emt 0:02:26]} e5 {[%emt 0:01:06]} 20. Qd2 {[%emt 0:00:31]} Bxd5 {[%emt 0:06:23]} 21. Qxd5 {[%emt 0:00:45]} Qc7 {[%emt 0:00:18]} 22. Rfd1 {[%emt 0:04:47]} Rb6 {[%emt 0:04:01]} 23. Rd2 {[%emt 0:04:00]} Nc5 {[%emt 0:06:24]} 24. Bf1 {[%emt 0:12:23]} Ne6 {[%emt 0:00:55]} 25. Bc4 {[%emt 0:01:05]} Nd4 {[%emt 0:03:14]} 26. Rxd4 {[%emt 0:03:45]} exd4 {[%emt 0:00:18]} 27. Qxd4+ {[%emt 0:00:09]} Kg8 {[%emt 0:00:53]} 28. b3 {[%emt 0:00:30]} Rc6 {[%emt 0:09:05]} 29. Ra7 {[%emt 0:01:33]} Qb8 {[%emt 0:05:45]} 30. h4 {[%emt 0:02:44]} Rc7 {[%emt 0:01:13]} 31. Ra6 {[%emt 0:01:28]} Rd8 {[%emt 0:04:21]} 32. h5 {[%emt 0:02:08]} gxh5 {[%emt 0:00:06]} 33. Qf6 {[%emt 0:00:59]} Re8 {[%emt 0:03:58]} 34. Rxd6 {[%emt 0:01:20]} Rxc4 {[%emt 0:01:06]} 35. bxc4 {[%emt 0:00:14]} b3 {[%emt 0:00:31]} 36. Rd7 {[%emt 0:02:04]} Rf8 {[%emt 0:00:27]} 37. Rd5 {[%emt 0:00:33]} 1-0

[Event "VIII Iberoamericano Mexico 2022"]
[Site "Mexico City"]
[Date "2022.02.18"]
[Round "7.11"]
[White "Avila Rodriguez, Joshua Ad"]
[Black "Rodriguez Vila, Andres"]
[Result "0-1"]
[ECO "B07"]
[WhiteElo "2182"]
[BlackElo "2461"]
[Annotator "ChessBase"]
[PlyCount "105"]
[EventDate "2022.02.12"]
[EventType "swiss"]
[EventCountry "MEX"]
[SourceTitle "playchess.com"]
[Source "ChessBase"]
[SourceQuality "1"]
[TimeControl "5400+30"]

1. e4 {[%emt 0:00:32]} d6 {[%emt 0:00:53]} 2. d4 {[%emt 0:00:11]} g6 {[%emt 0:00:05]} 3. Nf3 {[%emt 0:00:19]} Bg7 {[%emt 0:00:54]} 4. c3 {[%emt 0:00:09]} Nf6 {[%emt 0:00:19]} 5. Bd3 {[%emt 0:00:06]} c5 {[%emt 0:00:07]} 6. O-O {[%emt 0:00:53]} O-O {[%emt 0:00:17]} 7. Re1 {[%emt 0:00:28]} Bg4 {[%emt 0:01:18]} 8. Nbd2 {[%emt 0:00:24]} cxd4 {[%emt 0:01:05]} 9. cxd4 {[%emt 0:00:06]} Nc6 {[%emt 0:00:29]} 10. h3 {[%emt 0:00:09]} Bd7 {[%emt 0:00:12]} 11. a3 {[%emt 0:00:07]} Nh5 {[%emt 0:01:10]} 12. d5 {[%emt 0:07:55]} Ne5 {[%emt 0:00:07]} 13. Nxe5 {[%emt 0:00:56]} dxe5 {[%emt 0:00:07]} 14. Nf3 {[%emt 0:03:58]} Qb6 {[%emt 0:04:21]} 15. Be3 {[%emt 0:16:19]} Qd6 {[%emt 0:01:32]} 16. Qb3 {[%emt 0:00:59]} f5 {[%emt 0:05:09]} 17. Bd2 {[%emt 0:14:42]} Kh8 {[%emt 0:17:10]} 18. Bb4 {[%emt 0:01:12]} Qb6 {[%emt 0:03:21]} 19. Nd2 {[%emt 0:02:43]} fxe4 {[%emt 0:00:41]} 20. Bxe4 {[%emt 0:06:11]} Qxf2+ {[%emt 0:04:09]} 21. Kh1 {[%emt 0:04:20]} Bh6 {[%emt 0:08:57]} 22. Nf1 {[%emt 0:01:38]} Bb5 {[%emt 0:00:41]} 23. Bd3 {[%emt 0:27:26]} Nf4 {[%emt 0:07:12]} 24. Be4 {[%emt 0:00:06]} Nh5 {[%emt 0:05:47]} 25. Bd3 {[%emt 0:00:10]} Bxd3 {[%emt 0:00:43]} 26. Qxd3 {[%emt 0:00:08]} Qxg2+ {[%emt 0:00:07]} 27. Kxg2 {[%emt 0:00:11]} Nf4+ {[%emt 0:00:02]} 28. Kg1 {[%emt 0:06:58]} Nxd3 {[%emt 0:00:04]} 29. Bxe7 {[%emt 0:00:11]} Nxe1 {[%emt 0:00:15]} 30. Rxe1 {[%emt 0:00:03]} Rf7 {[%emt 0:04:25]} 31. Rxe5 {[%emt 0:00:42]} Bf8 {[%emt 0:03:23]} 32. Bg5 {[%emt 0:01:16]} Bc5+ {[%emt 0:05:00]} 33. Be3 {[%emt 0:00:05]} Bxe3+ {[%emt 0:00:08]} 34. Nxe3 {[%emt 0:00:02]} Rd8 {[%emt 0:01:38]} 35. Kg2 {[%emt 0:01:02]} Kg7 {[%emt 0:00:23]} 36. Kg3 {[%emt 0:00:32]} Rdd7 {[%emt 0:00:31]} 37. Nc4 {[%emt 0:03:09]} b5 {[%emt 0:01:15]} 38. Ne3 {[%emt 0:00:28]} Rde7 {[%emt 0:00:16]} 39. Rxe7 {[%emt 0:01:17]} Rxe7 {[%emt 0:00:01]} 40. Kf4 {[%emt 0:00:26]} g5+ {[%emt 0:00:09]} 41. Kf3 {[%emt 0:00:03]} Kf6 {[%emt 0:00:07]} 42. Ng4+ {[%emt 0:00:14]} Kf5 {[%emt 0:00:07]} 43. Ne3+ {[%emt 0:01:34]} Ke5 {[%emt 0:00:29]} 44. Kg4 {[%emt 0:00:09]} Kf6 {[%emt 0:00:09]} 45. Kf3 {[%emt 0:00:15]} h5 {[%emt 0:00:10]} 46. a4 {[%emt 0:00:25]} bxa4 {[%emt 0:00:30]} 47. Nc4 {[%emt 0:00:03]} Rc7 {[%emt 0:00:37]} 48. Na3 {[%emt 0:00:23]} Ke5 {[%emt 0:00:15]} 49. d6 {[%emt 0:00:11]} Rf7+ {[%emt 0:00:19]} 50. Ke3 {[%emt 0:00:33]} Kxd6 {[%emt 0:00:06]} 51. Nb5+ {[%emt 0:00:03]} Kc5 {[%emt 0:00:11]} 52. Nc3 {[%emt 0:00:28]} Kb4 {[%emt 0:00:05]} 53. Kd4 {[%emt 0:04:10]} 0-1

[Event "VIII Iberoamericano Mexico 2022"]
[Site "Mexico City"]
[Date "2022.02.18"]
[Round "7.12"]
[White "Cardoso Cardoso, Jose Gabriel"]
[Black "Noboa Silva, Kevin"]
[Result "1-0"]
[ECO "C11"]
[WhiteElo "2461"]
[BlackElo "2331"]
[Annotator "ChessBase"]
[PlyCount "83"]
[EventDate "2022.02.12"]
[EventType "swiss"]
[EventCountry "MEX"]
[SourceTitle "playchess.com"]
[Source "ChessBase"]
[SourceQuality "1"]
[TimeControl "5400+30"]

1. e4 {[%emt 0:00:08]} e6 {[%emt 0:00:18]} 2. d4 {[%emt 0:00:15]} d5 {[%emt 0:00:09]} 3. Nc3 {[%emt 0:00:09]} Nf6 {[%emt 0:00:22]} 4. e5 {[%emt 0:00:13]} Nfd7 {[%emt 0:00:17]} 5. f4 {[%emt 0:00:09]} c5 {[%emt 0:00:17]} 6. Nf3 {[%emt 0:00:09]} Nc6 {[%emt 0:00:44]} 7. Be3 {[%emt 0:00:09]} cxd4 {[%emt 0:00:52]} 8. Nxd4 {[%emt 0:00:08]} Bc5 {[%emt 0:00:26]} 9. Qd2 {[%emt 0:00:14]} O-O {[%emt 0:00:43]} 10. O-O-O {[%emt 0:00:16]} Nxd4 {[%emt 0:01:03]} 11. Bxd4 {[%emt 0:00:09]} a6 {[%emt 0:00:21]} 12. Qe3 {[%emt 0:04:00]} Bxd4 {[%emt 0:02:05]} 13. Qxd4 {[%emt 0:02:48]} b5 {[%emt 0:01:38]} 14. Bd3 {[%emt 0:01:44]} Rb8 {[%emt 0:01:22]} 15. h4 {[%emt 0:04:07]} b4 {[%emt 0:02:07]} 16. Ne2 {[%emt 0:01:38]} Qc7 {[%emt 0:01:20]} 17. Kb1 {[%emt 0:11:46]} a5 {[%emt 0:04:04]} 18. h5 {[%emt 0:05:44]} Nc5 {[%emt 0:03:03]} 19. g4 {[%emt 0:07:39]} Ba6 {[%emt 0:04:50]} 20. Rc1 {[%emt 0:15:55]} Rfc8 {[%emt 0:12:10]} 21. Bxa6 {[%emt 0:04:45]} Nxa6 {[%emt 0:00:08]} 22. f5 {[%emt 0:00:09]} Qc4 {[%emt 0:04:12]} 23. Qe3 {[%emt 0:01:39]} Nc5 {[%emt 0:06:45]} 24. h6 {[%emt 0:10:18]} g6 {[%emt 0:09:03]} 25. Ng3 {[%emt 0:01:58]} Na4 {[%emt 0:15:36]} 26. Ka1 {[%emt 0:00:27]} Qc5 {[%emt 0:03:56]} 27. Qf4 {[%emt 0:00:31]} Qc4 {[%emt 0:02:32]} 28. Qd2 {[%emt 0:05:43]} Qxg4 {[%emt 0:05:15]} 29. Nh5 {[%emt 0:00:47]} Qxf5 {[%emt 0:10:22]} 30. Nf6+ {[%emt 0:00:12]} Kh8 {[%emt 0:00:26]} 31. Nd7 {[%emt 0:00:06]} Nc5 {[%emt 0:00:55]} 32. Nxc5 {[%emt 0:04:19]} Rxc5 {[%emt 0:00:29]} 33. Rhf1 {[%emt 0:00:03]} Qxe5 {[%emt 0:04:15]} 34. Rce1 {[%emt 0:00:06]} Qc7 {[%emt 0:00:28]} 35. Qd4+ {[%emt 0:00:07]} e5 {[%emt 0:00:30]} 36. Rxe5 {[%emt 0:00:04]} f6 {[%emt 0:00:23]} 37. Rxf6 {[%emt 0:00:54]} Kg8 {[%emt 0:00:36]} 38. Ree6 {[%emt 0:02:34]} Rxc2 {[%emt 0:03:49]} 39. Rxg6+ {[%emt 0:00:13]} hxg6 {[%emt 0:00:09]} 40. Rxg6+ {[%emt 0:00:04]} Kf7 {[%emt 0:00:40]} 41. Qf6+ {[%emt 0:00:08]} Ke8 {[%emt 0:00:08]} 42. Qe6+ {[%emt 0:00:04]} 1-0